Cogmind - Beta 13 @@@ ROGUE MODE // 2024.06.14 @ 02:58:34 Player: MarKhan Result: Destroyed by H-77 Assassin with Coil Gun Performance ------------- Evolutions (7) 3500 Regions Visited (15) 3000 Robots Destroyed (124) 620 Value Destroyed (3850) 3850 Prototype IDs (22) 440 Alien Tech Used (0) 0 Bonus (1237) 1237 TOTAL SCORE: 12647 Bonus ------- High Alert Combat Kills 104 Follower Combat Kills 633 Entered DSFs 500 Cogmind --------- Core Integrity 0/1300 Matter 313/550 Energy 150/150 System Corruption 24% Temperature Cool (0) Movement Hovering (98) Ox1 Location -3/Research Parts ------- > --- POWER (2) -------- Micro Antimatter Reactor > --- PROPULSION (7) --- Gyrokinetic Inverter Gyrokinetic Inverter Gyrokinetic Inverter Gyrokinetic Inverter > --- UTILITY (10) ----- Experimental Thermal Generator Medium Storage Unit Matter Compressor Enhanced Optical Array Improved Phase Shifter > --- WEAPON (2) ------- Railgun Great Maul > --- INVENTORY (10) --- Experimental Signal Interpreter Long-range Terrain Scanner Peak State ------------ > --- POWER ------------ Micro Antimatter Reactor Micro Antimatter Reactor > --- PROPULSION ------- Gyrokinetic Inverter Gyrokinetic Inverter Gyrokinetic Inverter Gyrokinetic Inverter Gyrokinetic Inverter Gyrokinetic Inverter Improved Linear Gravjet > --- UTILITY ---------- Experimental Thermal Generator Advanced Heat Sink Advanced Heat Sink Medium Storage Unit Enhanced Optical Array Experimental Signal Interpreter Long-range Terrain Scanner Centrium Heavy Armor Plating Hacking Suite > --- WEAPON ----------- Plasma Sword Plasma Sword > --- INVENTORY -------- Micro Antimatter Reactor Compact Battery Matter Compressor Gravity Neutralizer Experimental Signal Interpreter Wave Gun Quantum Rifle Railgun Railgun Improved Plasma Cutter [Rating: 140] Favorites ----------- Power Improved Deuterium Engine Engine Improved Deuterium Engine Power Core Light Nuclear Core Reactor Micro Antimatter Reactor Propulsion Light Treads Treads Light Treads Leg Makeshift Leg Wheel Compact Wheel Hover Unit Gyrokinetic Inverter Flight Unit Nuclear Pulse Thruster Utility Advanced Terrain Scan Processor Device Improved Terrain Scanner Storage High-capacity Storage Unit Processor Advanced Terrain Scan Processor Hackware Hacking Suite Protection Propulsion Shielding Weapon Makeshift Axe Energy Gun Precision Shock Rifle Energy Cannon Heavy Ion Cannon Ballistic Gun Flak Gun Ballistic Cannon Improved Light Cannon Launcher Rocket Launcher Special Weapon Improved Plasma Cutter Impact Weapon Makeshift Hammer Slashing Weapon Makeshift Axe Special Melee Weapon Improved Datajack Build | -11 -10 -10 -10 -8 -7 -7 -7 -6 -6 -6 -5 -5 -4 -4 -3 ------- Run | Yrd Mat Min Sub Mat Fac Low Low Fac Was Fac Fac Ext Fac DSF Res Slots Evolved 14 | . . . . 4 2 . . 2 . . 2 . 2 . 2 Power 1 | . . . . . . . . . . . . . 1 . . Propulsion 5 | . . . . 1 1 . . 1 . . 1 . 1 . . Utility 8 | . . . . 3 1 . . 1 . . 1 . . . 2 Weapon . | . . . . . . . . . . . . . . . . Parts Attached 230 | 7 12 11 7 49 5 17 . 3 8 21 13 6 1 15 55 Power 18 | 1 1 1 1 2 . 1 . . . 2 . 1 . 2 6 Engine 7 | 1 1 . 1 . . 1 . . . 2 . . . 1 . Core 5 | . . 1 . 2 . . . . . . . 1 . 1 . Reactor 6 | . . . . . . . . . . . . . . . 6 Propulsion 59 | 2 . 2 2 13 1 3 . . 5 7 5 2 . 9 8 Treads 13 | 2 . . . 6 . 2 . . 2 1 . . . . . Leg 8 | . . . 2 5 . 1 . . . . . . . . . Wheel 6 | . . 2 . . . . . . . . . 2 . 2 . Hover 17 | . . . . . . . . . 2 . . . . 7 8 Flight 15 | . . . . 2 1 . . . 1 6 5 . . . . Utility 78 | 2 5 3 2 12 2 6 . 2 1 8 5 1 . 4 25 Device 41 | 1 2 2 1 7 . 6 . 1 1 1 5 . . 1 13 Storage 8 | 1 3 . . . . . . . . . . . . 1 3 Processor 16 | . . . . 5 2 . . . . . . . . 2 7 Hackware 6 | . . . . . . . . . . 6 . . . . . Protection 7 | . . 1 1 . . . . 1 . 1 . 1 . . 2 Artifact . | . . . . . . . . . . . . . . . . Weapon 75 | 2 6 5 2 22 2 7 . 1 2 4 3 2 1 . 16 Energy Gun 15 | . 2 2 . 2 . 3 . . 1 1 . 1 . . 3 Energy Cannon 10 | . . . . 9 . . . . . . . . . . 1 Ballistic Gun 8 | 2 1 . . . . 1 . . 1 . . . . . 3 Ballistic Cannon 1 | . . . . . . . . 1 . . . . . . . Launcher 10 | . . 3 . 4 . . . . . . . . . . 3 Special Weapon 2 | . . . . . . . . . . . 1 . 1 . . Impact Weapon 9 | . . . . 5 1 . . . . 1 . . . . 2 Slashing Weapon 17 | . 2 . 2 2 1 2 . . . 2 1 1 . . 4 Piercing Weapon . | . . . . . . . . . . . . . . . . Special Melee Weapon 3 | . 1 . . . . 1 . . . . 1 . . . . Unidentified Prototypes 11 | . . . . 2 1 . . . 1 1 . . . . 6 Corrupted Parts 4 | . . . . . . 3 . . . . . . . . 1 System Corruption 20 | . . . . . . 13 . . . . . . . . 7 Parts Lost 64 | . . 1 1 8 . 5 . . . 8 8 8 . . 25 Power 9 | . . 1 . 2 . 1 . . . . . . . . 5 Propulsion 22 | . . . . 3 . 1 . . . 3 4 5 . . 6 Utility 26 | . . . . 2 . 1 . . . 5 3 3 . . 12 Weapon 7 | . . . 1 1 . 2 . . . . 1 . . . 2 Highest Loss Streak 15 | . . 1 1 2 . 4 . . . 4 6 6 . . 15 To Critical Strikes 2 | . . . . 1 . . . . . . . . . . 1 Average Slot Usage (%) 93 | . 99 99 97 98 92 93 100 91 87 84 98 56 15 49 87 Engine 5 | . 14 1 9 3 . 6 7 6 6 6 5 2 . 2 . Core 2 | . . 12 4 5 7 . . . . . . 2 . 2 . Treads 16 | . 28 18 . 15 23 21 30 26 23 12 . . . . . Leg 4 | . . . 18 10 . 4 . . . . . . . . . Wheel 1 | . . 9 9 . . . . . . . . 3 . 2 . Hover 2 | . . . . . . . . . 1 . . . . 20 30 Flight 2 | . . . . . . . . . . 11 34 14 . . . Device 9 | . 13 7 . 14 7 7 7 6 11 8 7 . . 2 10 Storage 8 | . 14 14 14 9 7 7 7 6 6 3 . . . . 5 Processor 14 | . . . . 19 30 30 30 26 15 8 5 5 5 7 14 Hackware 2 | . . . . . . . . . . 14 32 20 5 5 3 Protection 2 | . . 6 14 1 . . . 4 6 4 . . . . 3 Energy Gun 5 | . 9 22 1 3 12 2 . . . 3 3 1 . . . Energy Cannon 1 | . . . . 4 . . . . . . . . . . . Ballistic Gun 4 | . 17 . . . . 4 7 6 6 3 . . . . 1 Launcher 1 | . . 5 14 . . . . . . . . . . . . Impact Weapon 1 | . . . . 4 . . . . . . . . . . . Slashing Weapon 3 | . . . 10 4 1 3 7 1 . 3 4 3 . . 5 Naked Turns . | . . . . . . . . . . . . . . . . Heaviest Build 82 | 15 52 53 53 64 56 59 57 61 69 73 23 15 2 39 82 Greatest Support 177 | 40 40 40 40 69 60 89 89 89 169 177 34 32 3 76 93 Greatest Overweight (x) 2 | . 1 1 1 1 . 1 . . . . . 2 . . 1 Average Overweight (x) . | . . 1 1 . . . . . . . . . . . . Largest Inventory Capacity 25 | 8 25 20 20 20 20 20 20 20 20 20 5 5 5 10 10 Average Capacity 17 | 7 19 20 20 20 20 20 20 20 20 14 5 5 5 5 10 Most Carried 20 | 6 20 20 20 20 20 20 20 20 20 20 5 5 5 5 10 Average Carried 17 | 5 17 19 19 19 19 19 20 19 19 14 4 4 5 4 9 Final Capacity 20 | 8 20 20 20 20 20 20 20 20 20 5 5 5 5 10 10 Final Carried 20 | 6 20 20 20 20 20 20 20 20 20 5 5 5 5 5 2 Class Distribution -------------------- 49% | Mutant 20% | Scavenger-Mutant 10% | Skirmisher 6% | Assassin 4% | Wizard-Sprinter 4% | Scavenger-Assassin Dominant Class ---------------- Mutant | -10/Materials Mutant | -10/Mines Scavenger-Mutant | -10/Subcaves Scavenger-Mutant | -8/Materials Skirmisher | -7/Factory Mutant | -7/Lower Caves Mutant | -7/Lower Caves Mutant | -6/Factory Mutant | -6/Waste Scavenger-Mutant | -6/Factory Wizard-Sprinter | -5/Factory Hacker-Sprinter | -5/Extension Hacker-Sprinter | -4/Factory Hacker-Sprinter | -4/DSF Mutant | -3/Research Resources | -11 -10 -10 -10 -8 -7 -7 -7 -6 -6 -6 -5 -5 -4 -4 -3 ----------- Run | Yrd Mat Min Sub Mat Fac Low Low Fac Was Fac Fac Ext Fac DSF Res Matter Collected 3454 | 294 409 118 260 570 34 258 3 . 133 318 . 268 . . 789 Remotely 27 | . . . 27 . . . . . . . . . . . . Salvage Created 4427 | 106 500 128 171 1002 137 447 . . . 464 36 79 . . 1357 Parts 268 | 4 52 15 19 70 6 19 . . . 12 4 4 . . 63 Haulers Intercepted 8 | . 1 . . 4 . . . . . 1 . . . . 2 Recyclers Shooed 2 | . . . . . . . . . . 2 . . . . . Parts Field Recycled . | . . . . . . . . . . . . . . . . Retrieved Matter . | . . . . . . . . . . . . . . . . Parts Self-Destructed 7 | . . . 4 . . 3 . . . . . . . . . Prevented 16 | . . . . . . 16 . . . . . . . . . Kills | -11 -10 -10 -10 -8 -7 -7 -7 -6 -6 -6 -5 -5 -4 -4 -3 ------- Run | Yrd Mat Min Sub Mat Fac Low Low Fac Was Fac Fac Ext Fac DSF Res Combat Hostiles Destroyed 88 | . 13 10 7 18 2 8 . . . 9 . 1 . . 20 Melee 17 | . . . . 6 . . . . . . . 1 . . 10 Guns 31 | . 13 2 . . . 7 . . . 9 . . . . . Cannons 3 | . . . . 3 . . . . . . . . . . . AOE 33 | . . 8 7 9 1 . . . . . . . . . 8 Classes Destroyed 16 | 2 7 . 1 2 1 2 . . . . . . . . 1 Worker 6 | . 2 . . 1 . . . . . . . . . . 3 Builder 7 | . 1 . . 2 . . . . . 1 . . . . 3 Tunneler 1 | 1 . . . . . . . . . . . . . . . Hauler 8 | . 1 . . 4 . . . . . 1 . . . . 2 Recycler 2 | 1 . . . 1 . . . . . . . . . . . Operator 4 | . 1 . . 3 . . . . . . . . . . . Watcher 8 | . 3 . . 3 1 . . . . . 1 . . . . Swarmer 33 | . 8 8 . 7 . . . . . . . . . . 10 Cutter 2 | . . . . . . . . . . . . . . . 2 Grunt 24 | . 5 2 . 5 1 6 . . . 5 . . . . . Brawler 1 | . . . . . . 1 . . . . . . . . . Duelist 1 | . . . . . . 1 . . . . . . . . . Sentry 11 | . . . . 4 . . . . . 1 . 1 . . 5 Hunter 5 | . . . . 2 . . . . . 2 . . . . 1 Programmer 4 | . . . . . 1 . . . . 1 . . . . 2 Subdweller 7 | . . . 7 . . . . . . . . . . . . Best Kill Streak 13 | 1 5 3 2 5 1 4 . . . 4 1 1 . . 13 Combat Bots Only 9 | . 5 3 2 4 1 4 . . . 2 . 1 . . 9 Max Kills in Single Turn 3 | 1 2 3 1 3 1 1 . . . 1 1 1 . . 3 Gunslinging . | . . . . . . . . . . . . . . . . Exploded 3 | . . 3 1 3 1 . . . . . . . . . 2 Melee 1 | . . . . 1 . . . . . . . 1 . . 1 Uniques/NPCs Destroyed . | . . . . . . . . . . . . . . . . Combat | -11 -10 -10 -10 -8 -7 -7 -7 -6 -6 -6 -5 -5 -4 -4 -3 -------- Run | Yrd Mat Min Sub Mat Fac Low Low Fac Was Fac Fac Ext Fac DSF Res Hostile Shots Fired 1001 | . 74 40 11 100 26 63 . . . 159 40 60 . 24 404 Missed 347 | . 26 19 2 22 6 21 . . . 35 19 20 . 18 159 Damage Taken 11696 | . 481 250 208 976 311 711 . . . 1998 633 881 . 115 5132 Core 2803 | . 100 118 . 151 56 71 . . . 209 217 565 . . 1316 Absorbed by Shields 238 | . . . . . . . . . . . . 139 . . 99 Reduced by Siege Mode 146 | . . . . . . . . . . 146 . . . . . Redirected to Shielding 273 | . . 8 21 21 . . . . . 111 . . . . 112 Regen/Repaired (Parts) 392 | . 18 . . 27 . . . . 347 . . . . . . Core Remaining (%) 65 | 100 . . 12 72 . . 81 . . 75 . 21 . 100 . Volleys Fired 235 | 4 48 14 12 39 7 23 . . . 54 1 17 . . 16 Largest 2 | 2 2 2 2 2 2 2 . . . 2 1 1 . . 2 Hottest 130 | 40 130 130 98 130 110 110 . . . 48 20 81 . . 116 Shots Fired 373 | 8 96 27 17 57 14 37 . . . 78 1 18 . . 20 Gun 290 | 8 96 22 5 . 14 37 . . . 78 . 18 . . 12 Cannon 45 | . . . . 45 . . . . . . . . . . . Launcher 37 | . . 5 12 12 . . . . . . . . . . 8 Special 1 | . . . . . . . . . . . 1 . . . . Kinetic 162 | 8 84 . . . . 9 . . . 50 . . . . 11 Thermal 132 | . 12 22 5 45 . . . . . 28 1 18 . . 1 Explosive 30 | . . 5 12 12 . . . . . . . . . . 1 Electromagnetic 49 | . . . . . 14 28 . . . . . . . . 7 Robot Hit Streak 15 | 7 8 3 3 5 3 15 . . . 15 . 6 . . 5 Robot Miss Streak 6 | . 5 5 1 4 2 5 . . . 6 . 3 . . 1 Penetration Max 1 | . . . . . . . . . . . . . . . 1 Secondary Targets 4 | . 1 . . . . 3 . . . . . . . . . Max Gunslinging Chain 1 | . 1 . . . . 1 . . . . . . . . . Shots Hit Robots 363 | 7 47 9 9 68 9 36 . . . 84 9 13 . . 72 Core Hits 228 | 3 24 12 13 34 4 24 . . . 61 1 5 . . 47 Critical Kills . | . . . . . . . . . . . . . . . . Critical Parts Destroyed 3 | . 1 . . 1 . . . . . . . . . . 1 Critical Strikes 19 | . 2 . . 1 . . . . . 1 . 1 . . 14 Burn 2 | . 1 . . . . . . . . 1 . . . . . Destroy 1 | . 1 . . . . . . . . . . . . . . Smash 2 | . . . . 1 . . . . . . . . . . 1 Sever 14 | . . . . . . . . . . . . 1 . . 13 Melee Attacks 270 | . 3 . 3 65 5 9 . . . 21 41 6 . . 117 Impact 34 | . . . . 17 3 1 . . . 4 . . . . 9 Slashing 226 | . 3 . 3 48 2 5 . . . 17 34 6 . . 108 Piercing . | . . . . . . . . . . . . . . . . Sneak Attacks 22 | . . . . 10 . . . . . 2 6 1 . . 3 Combat Hostiles 1 | . . . . . . . . . . . . 1 . . . Follow-up Attacks 13 | . . . . 3 . . . . . . . . . . 10 Damage Inflicted 12651 | 88 637 462 833 3261 302 670 . . . 1745 99 387 . . 4167 Guns 3420 | 88 622 116 29 . 116 591 . . . 1349 . 239 . . 270 Cannons 828 | . . . . 808 . . . . . . . . . . 20 Explosions 3149 | . . 346 804 676 90 79 . . . . . . . . 1154 Melee 5239 | . . . . 1777 96 . . . . 396 99 148 . . 2723 Ramming 15 | . 15 . . . . . . . . . . . . . . Kinetic 1839 | 88 519 . . . . 125 . . . 837 . . . . 270 Thermal 2172 | . 103 116 29 808 90 79 . . . 512 . 239 . . 196 Explosive 2139 | . . 346 804 676 . . . . . . . . . . 313 Electromagnetic 1227 | . . . . . 116 466 . . . . . . . . 645 Impact 786 | . . . . 371 96 . . . . 101 . . . . 218 Slashing 4473 | . . . . 1406 . . . . . 295 99 148 . . 2525 Piercing . | . . . . . . . . . . . . . . . . Highest Corruption 24 | . 1 1 1 . 2 15 15 . . 1 10 7 . . 24 Average Corruption 3 | . 1 1 1 . 1 4 15 . . 1 8 7 . . 6 Corruption Purged 4 | . . . . . . . . . . . 4 . . . . Corruption Blocked . | . . . . . . . . . . . . . . . . Effects 82 | . 6 5 2 . 2 39 1 . . 2 5 6 . . 14 Message Errors 30 | . 1 . 1 . 1 18 . . . 1 1 2 . . 5 Matter Fused 14 | . 2 1 . . . 8 . . . . 2 1 . . . Heat Flow Errors 11 | . . 1 1 . . 4 . . . . 2 1 . . 2 Energy Discharges 9 | . 2 2 . . . 4 . . . . . . . . 1 Parts Rejected 2 | . . . . . . . . . . . . . . . 2 Data Loss (minor) 6 | . . 1 . . 1 2 . . . . . 1 . . 1 Data Loss (major) 4 | . 1 . . . . 1 1 . . 1 . . . . . Misfires 2 | . . . . . . 1 . . . . . 1 . . . Alerts 1 | . . . . . . . . . . . . . . . 1 Misdirections 1 | . . . . . . . . . . . . . . . 1 Weapon Failures 2 | . . . . . . 1 . . . . . . . . 1 Overload Shots . | . . . . . . . . . . . . . . . . Overflow Damage 811 | . . 5 . 428 13 . . . . 38 . . . . 327 Projectiles . | . . . . . . . . . . . . . . . . Explosions 57 | . . 5 . 51 . . . . . . . . . . 1 Melee 754 | . . . . 377 13 . . . . 38 . . . . 326 Knockbacks 7 | . . . . 2 1 . . . . . . . . . 4 Impact 7 | . . . . 2 1 . . . . . . . . . 4 Kinetic . | . . . . . . . . . . . . . . . . Secondary . | . . . . . . . . . . . . . . . . Self-Inflicted Damage 331 | . . . 17 66 . . . . . . . . . . 248 Shots 13 | . . . 1 3 . . . . . . . . . . 9 Rammed 1 | . 1 . . . . . . . . . . . . . . Targets Rammed 2 | . 2 . . . . . . . . . . . . . . Kicked . | . . . . . . . . . . . . . . . . Crushed 1 | . 1 . . . . . . . . . . . . . . Highest Temperature 399 | . 387 361 184 339 108 256 . . . 27 222 210 . 7 399 Average Temperature 97 | . 176 113 98 108 41 80 . . . 4 83 97 . 6 105 Received Heat Transfer 1912 | . 90 57 54 288 117 369 . . . 486 36 163 . . 252 Effects 19 | . . 3 . 2 . . . . . . . . . . 14 Shutdowns 5 | . . 1 . . . . . . . . . . . . 4 Energy Bleed 4 | . . . . 2 . . . . . . . . . . 2 Interference 7 | . . . . . . . . . . . . . . . 7 Matter Decay 1 | . . . . . . . . . . . . . . . 1 Short Circuit 2 | . . 2 . . . . . . . . . . . . . Siege Activations 3 | . . . . . . . . . . 3 . . . . . Total Turns 96 | . . . . . . . . . . 96 . . . . . Longest Duration 61 | . . . . . . . . . . 61 . . . . . Robots Corrupted 2 | . . . . . . 1 . . . . . . . . 1 Combat Hostiles 2 | . . . . . . 1 . . . . . . . . 1 Parts Fried 10 | . . . . 3 1 3 . . . . . . . . 3 Impact Corruptions 13 | . . . . 7 1 . . . . . . . . . 5 Robots Melted . | . . . . . . . . . . . . . . . . Combat Hostiles . | . . . . . . . . . . . . . . . . Parts Melted 1 | . 1 . . . . . . . . . . . . . . Heat Transferred 3695 | . 296 259 74 1110 50 100 . . . 1036 . 370 . . 400 Parts Sabotaged . | . . . . . . . . . . . . . . . . Parts Stolen . | . . . . . . . . . . . . . . . . Parts Stripped . | . . . . . . . . . . . . . . . . Power Chain Reactions 6 | . . . . . 1 1 . . . . . . . . 4 Alert | -11 -10 -10 -10 -8 -7 -7 -7 -6 -6 -6 -5 -5 -4 -4 -3 ------- Run | Yrd Mat Min Sub Mat Fac Low Low Fac Was Fac Fac Ext Fac DSF Res Peak Influence 629 | 10 285 197 . 397 109 . . . . 332 121 260 82 72 629 Initial 84 | . 6 12 . . 84 . . . . . 29 51 78 57 40 Average 127 | 5 77 95 . 176 87 . . . . 129 74 123 78 65 230 Maximum Alert Level 2 | . 1 . . 1 . . . . . 1 . 1 . . 2 Low Security (%) 75 | 100 98 100 . 49 100 . . 100 100 69 100 80 100 100 52 Level 1 23 | . 1 . . 50 . . . . . 30 . 19 . . 34 Level 2 1 | . . . . . . . . . . . . . . . 13 Level 3 . | . . . . . . . . . . . . . . . . Level 4 . | . . . . . . . . . . . . . . . . Level 5 . | . . . . . . . . . . . . . . . . High Security . | . . . . . . . . . . . . . . . . Max Security . | . . . . . . . . . . . . . . . . Squads Dispatched 26 | . 2 . . 2 1 . . . . 9 1 1 . 1 9 Investigation 4 | . 1 . . . . . . . . 1 1 . . . 1 Extermination 4 | . . . . . 1 . . . . 2 . . . . 1 Reinforcement 14 | . 1 . . 2 . . . . . 3 . 1 . 1 6 Assault 1 | . . . . . . . . . . . . . . . 1 Garrison 3 | . . . . . . . . . . 3 . . . . . Intercept . | . . . . . . . . . . . . . . . . Searches Triggered . | . . . . . . . . . . . . . . . . Construction Impeded 3 | . . . . . . . . . . 2 . . . . 1 Haulers Reinforced 3 | . . . . . . . . . . 1 . . . . 2 Active Scanning Responses . | . . . . . . . . . . . . . . . . Cargo Convoy Interrupts . | . . . . . . . . . . . . . . . . Stealth | -11 -10 -10 -10 -8 -7 -7 -7 -6 -6 -6 -5 -5 -4 -4 -3 --------- Run | Yrd Mat Min Sub Mat Fac Low Low Fac Was Fac Fac Ext Fac DSF Res Distress Signals 6 | . . . . 3 . . . . . . 1 1 . . 1 Communications Jammed . | . . . . . . . . . . . . . . . . Distress Signals . | . . . . . . . . . . . . . . . . Times Spotted 203 | . 23 12 7 35 8 8 . . . 29 14 14 . 5 48 Peak Tracking Total 14 | . 3 3 2 5 4 4 . . . 5 12 6 . 4 14 Tactical Retreats 21 | . 5 1 . . . . . . . 3 1 . . 1 10 Traps | -11 -10 -10 -10 -8 -7 -7 -7 -6 -6 -6 -5 -5 -4 -4 -3 ------- Run | Yrd Mat Min Sub Mat Fac Low Low Fac Was Fac Fac Ext Fac DSF Res Traps Triggered 11 | . 2 . . . . . . 1 . 3 . . . 4 1 Indirectly . | . . . . . . . . . . . . . . . . Trap Hack Attempts . | . . . . . . . . . . . . . . . . Triggered . | . . . . . . . . . . . . . . . . Disarmed . | . . . . . . . . . . . . . . . . Reprogrammed . | . . . . . . . . . . . . . . . . Reused 1 | . . 1 . . . . . . . . . . . . . Traps Extracted . | . . . . . . . . . . . . . . . . Installed 1 | . . 1 . . . . . . . . . . . . . Triggered 4 | . . 1 . . 1 1 . . . . . . . . 1 Most Traps Carried 1 | . . 1 1 1 . . . . . . . . . . . Machines | -11 -10 -10 -10 -8 -7 -7 -7 -6 -6 -6 -5 -5 -4 -4 -3 ---------- Run | Yrd Mat Min Sub Mat Fac Low Low Fac Was Fac Fac Ext Fac DSF Res Machines Disabled 6 | . . 2 . 2 1 . . . . 1 . . . . . Max in Single Turn 2 | . . 2 . 1 1 . . . . . . . . . . Garrison Access 2 | . . . . . 1 . . . . . . . . . 1 Machines Repaired . | . . . . . . . . . . . . . . . . Machines Dismantled . | . . . . . . . . . . . . . . . . Machines Sabotaged . | . . . . . . . . . . . . . . . . Overloaded Fab Kills . | . . . . . . . . . . . . . . . . Hacking | -11 -10 -10 -10 -8 -7 -7 -7 -6 -6 -6 -5 -5 -4 -4 -3 --------- Run | Yrd Mat Min Sub Mat Fac Low Low Fac Was Fac Fac Ext Fac DSF Res Machines Accessed 45 | . 9 1 . 11 2 2 . . . 7 2 7 1 . 3 Terminals 30 | . 7 . . 8 . . . . . 6 . 7 1 . 1 Fabricators 1 | . . . . . . . . . . . 1 . . . . Repair Stations 4 | . 1 . . 1 . . . . . 1 . . . . 1 Recycling Units 3 | . 1 . . 1 . . . . . . 1 . . . . Scanalyzers 2 | . . . . 1 1 . . . . . . . . . . Garrison Access 2 | . . . . . 1 . . . . . . . . . 1 Total Hacks 158 | . 26 1 . 46 5 7 . . . 47 8 11 1 . 6 Successful 112 | . 13 1 . 28 4 7 . . . 38 7 11 1 . 2 Failed 45 | . 13 . . 18 1 . . . . 8 1 . . . 4 Catastrophic 5 | . 2 . . 1 . . . . . . . . . . 2 Database Lockouts 1 | . . . . . . . . . . 1 . . . . . Manual 52 | . 9 . . 16 . . . . . 21 4 2 . . . Terminals 106 | . 22 . . 27 . . . . . 42 . 11 1 . 3 Fabricators 4 | . . . . . . . . . . . 4 . . . . Repair Stations 12 | . 2 . . 3 . . . . . 5 . . . . 2 Recycling Units 8 | . 2 . . 2 . . . . . . 4 . . . . Scanalyzers 18 | . . . . 14 4 . . . . . . . . . . Garrison Access 2 | . . . . . 1 . . . . . . . . . 1 Terminal Hacks 65 | . 8 1 . 8 . 7 . . . 30 . 10 1 . . Record 13 | . . . . 2 . 6 . . . 5 . . . . . Robot Schematic 1 | . . . . . . . . . . 1 . . . . . Robot Analysis 1 | . 1 . . . . . . . . . . . . . . Prototype ID Bank 5 | . 1 . . 3 . . . . . 1 . . . . . Open Door 8 | . . 1 . . . 1 . . . . . 6 . . . Open DSF 2 | . . . . . . . . . . 1 . . 1 . . Level Access Points 1 | . . . . . . . . . . 1 . . . . . Branch Access Points 1 | . . . . . . . . . . 1 . . . . . Emergency Access Points 4 | . 1 . . . . . . . . 3 . . . . . Terminal Index 4 | . 1 . . 1 . . . . . 1 . 1 . . . Repair Station Index 1 | . . . . . . . . . . 1 . . . . . Recycling Unit Index 1 | . . . . . . . . . . 1 . . . . . Alert Level 4 | . 1 . . . . . . . . 2 . 1 . . . Unreport Threat 2 | . . . . . . . . . . 2 . . . . . Locate Traps 2 | . 1 . . . . . . . . 1 . . . . . Dispatch Records 1 | . . . . . . . . . . 1 . . . . . Maintenance Status 1 | . 1 . . . . . . . . . . . . . . Security Status 1 | . . . . . . . . . . 1 . . . . . Patrol Status 1 | . . . . . . . . . . . . 1 . . . Reinforcement Status 1 | . . . . . . . . . . 1 . . . . . Recall Investigation 1 | . . . . . . . . . . 1 . . . . . Recall Extermination 1 | . . . . . . . . . . 1 . . . . . Hauler Manifests 3 | . 1 . . . . . . . . 2 . . . . . Registered Prototypes 2 | . . . . . . . . . . 1 . 1 . . . Zone Layout 3 | . . . . 2 . . . . . 1 . . . . . Fabricator Hacks 3 | . . . . . . . . . . . 3 . . . . Network Status 1 | . . . . . . . . . . . 1 . . . . Load Schematic 1 | . . . . . . . . . . . 1 . . . . Build 1 | . . . . . . . . . . . 1 . . . . Repair Station Hacks 8 | . 2 . . 2 . . . . . 3 . . . . 1 Scan Component 5 | . 1 . . 1 . . . . . 2 . . . . 1 Repair 3 | . 1 . . 1 . . . . . 1 . . . . . Recycling Unit Hacks 4 | . 1 . . 2 . . . . . . 1 . . . . Report Inventory 3 | . 1 . . 1 . . . . . . 1 . . . . Retrieve Components 1 | . . . . 1 . . . . . . . . . . . Scanalyzer 16 | . . . . 13 3 . . . . . . . . . . Insert Component 7 | . . . . 6 1 . . . . . . . . . . Analyze 9 | . . . . 7 2 . . . . . . . . . . Garrison Access Hacks 2 | . . . . . 1 . . . . . . . . . 1 Seal Access 2 | . . . . . 1 . . . . . . . . . 1 Unauthorized Hacks 14 | . 2 . . 3 . . . . . 5 3 1 . . . Terminals 11 | . 2 . . 3 . . . . . 5 . 1 . . . Assimilate 2 | . . . . . . . . . . 2 . . . . . Botnet 7 | . 2 . . 2 . . . . . 2 . 1 . . . Operators 2 | . . . . 1 . . . . . 1 . . . . . Fabricators 1 | . . . . . . . . . . . 1 . . . . Prioritize 1 | . . . . . . . . . . . 1 . . . . Repair Stations . | . . . . . . . . . . . . . . . . Recycling Units 2 | . . . . . . . . . . . 2 . . . . Monitor 1 | . . . . . . . . . . . 1 . . . . Recyclers 1 | . . . . . . . . . . . 1 . . . . Scanalyzers . | . . . . . . . . . . . . . . . . Garrison Access . | . . . . . . . . . . . . . . . . Data Cores Recovered . | . . . . . . . . . . . . . . . . Used . | . . . . . . . . . . . . . . . . Hacking Detections 32 | . 8 . . 11 1 . . . . 6 2 2 . . 2 Full Trace Events 5 | . 1 . . 1 . . . . . 1 1 . . . 1 Feedback Events . | . . . . . . . . . . . . . . . . Feedback Blocked . | . . . . . . . . . . . . . . . . Robot Schematics Acquired 1 | . . . . . . . . . . 1 . . . . . Robots Built . | . . . . . . . . . . . . . . . . Authchips . | . . . . . . . . . . . . . . . . Time . | . . . . . . . . . . . . . . . . Total Robot Build Rating . | . . . . . . . . . . . . . . . . Part Schematics Acquired 5 | . . . . 4 1 . . . . . . . . . . Parts Built 1 | . . . . . . . . . . . 1 . . . . Authchips . | . . . . . . . . . . . . . . . . Time 33 | . . . . . . . . . . . 33 . . . . Total Part Build Rating 4 | . . . . . . . . . . . 4 . . . . Parts Repaired 3 | . 1 . . 1 . . . . . 1 . . . . . Time 126 | . 38 . . 44 . . . . . 44 . . . . . Parts Recycled . | . . . . . . . . . . . . . . . . Recycled Matter . | . . . . . . . . . . . . . . . . Retrieved Matter . | . . . . . . . . . . . . . . . . Retrieved Components 9 | . . . . 9 . . . . . . . . . . . Parts Scanalyzed 6 | . . . . 5 1 . . . . . . . . . . Part Schematics Acquired 5 | . . . . 4 1 . . . . . . . . . . Parts Damaged 2 | . . . . 1 1 . . . . . . . . . . Bothacking | -11 -10 -10 -10 -8 -7 -7 -7 -6 -6 -6 -5 -5 -4 -4 -3 ------------ Run | Yrd Mat Min Sub Mat Fac Low Low Fac Was Fac Fac Ext Fac DSF Res Used RIF Installer . | . . . . . . . . . . . . . . . . Robots Hacked 4 | . . . . . . . . . . . 4 . . . . Non-combat 3 | . . . . . . . . . . . 3 . . . . Combat 1 | . . . . . . . . . . . 1 . . . . Robot Hacks Applied 7 | . . . . . . . . . . . 7 . . . . parse_system 2 | . . . . . . . . . . . 2 . . . . no_distress 3 | . . . . . . . . . . . 3 . . . . find_chute 1 | . . . . . . . . . . . 1 . . . . find_fabricator 1 | . . . . . . . . . . . 1 . . . . Relay Couplers Released . | . . . . . . . . . . . . . . . . Fabnet Peak Effective % . | . . . . . . . . . . . . . . . . Robots Rewired . | . . . . . . . . . . . . . . . . Allies Hacked . | . . . . . . . . . . . . . . . . Hacks Repelled . | . . . . . . . . . . . . . . . . Allies | -11 -10 -10 -10 -8 -7 -7 -7 -6 -6 -6 -5 -5 -4 -4 -3 -------- Run | Yrd Mat Min Sub Mat Fac Low Low Fac Was Fac Fac Ext Fac DSF Res Total Allies 28 | . . . . . . . . . 21 . . 7 . . . Largest Group 21 | . . . . . . . . . 21 21 . 5 1 . . Highest-Rated Group 710 | . . . . . . . . . 710 710 . 271 159 . . Highest-Rated Ally 159 | . . . . . . . . . 46 46 . 159 159 . . Total Orders 5 | . . . . . . . . . 2 3 . . . . . EXPLORE 3 | . . . . . . . . . 1 2 . . . . . RETURN 2 | . . . . . . . . . 1 1 . . . . . Ally Attacks 141 | . . . . . . . . . 7 99 . 35 . . . Total Damage 3392 | . . . . . . . . . 104 2282 . 1006 . . . Kills 20 | . . . . . . . . . . 13 . 7 . . . Allies Corrupted 1 | . . . . . . . . . . 1 . . . . . Allies Melted 1 | . . . . . . . . . . 1 . . . . . Intel | -11 -10 -10 -10 -8 -7 -7 -7 -6 -6 -6 -5 -5 -4 -4 -3 ------- Run | Yrd Mat Min Sub Mat Fac Low Low Fac Was Fac Fac Ext Fac DSF Res Robot Analysis Total 1 | . 1 . . . . . . . . . . . . . . Derelict Logs Recovered 3 | . . 2 . . . 1 . . . . . . . . . Drone Launches 31 | . . . . . . . . . 16 15 . . . . . Drone Recoveries 15 | . . . . . . . . . 14 1 . . . . . Exploration | -11 -10 -10 -10 -8 -7 -7 -7 -6 -6 -6 -5 -5 -4 -4 -3 ------------- Run | Yrd Mat Min Sub Mat Fac Low Low Fac Was Fac Fac Ext Fac DSF Res Turns Passed 11968 | 136 1836 654 708 2649 527 2175 40 112 376 1167 277 228 9 73 1001 Spaces Moved 7370 | 71 700 340 391 1064 254 1078 25 65 185 697 793 494 6 84 1123 Core 24 | 6 . . . . . . . . . . . 7 6 5 . Treads 3388 | 65 700 150 . 551 254 1078 25 65 185 315 . . . . . Legs 734 | . . . 221 513 . . . . . . . . . . . Wheels 378 | . . 190 170 . . . . . . . . 2 . 16 . Hover 1186 | . . . . . . . . . . . . . . 63 1123 Flight 1660 | . . . . . . . . . . 382 793 485 . . . Fastest Speed 20 | 50 160 115 115 120 166 165 165 165 163 23 20 30 50 41 41 Average Speed 125 | 150 232 170 168 175 166 189 165 165 164 85 20 34 50 52 46 Slowest Speed 250 | 160 240 240 210 246 166 250 165 165 165 163 30 150 50 90 102 Overloaded Moves . | . . . . . . . . . . . . . . . . Propulsion Burnouts . | . . . . . . . . . . . . . . . . Robots Hopped 27 | . . . . . . . . . . 3 22 2 . . . Cave-ins Triggered 2 | . . . . . . . . . . . 1 . . . 1 Exploration Rate (%) 44 | 6 91 68 32 66 8 85 7 2 95 36 19 50 . 81 26 Regions Visited 15 Branch Regions 5 Pre-discovered Areas 2 | . . 1 . . . 1 . . . . . . . . . Known Exits Taken 2 | . . . . . . . . . . 1 . . 1 . . Unknown Exits Taken 10 | 1 1 1 1 1 1 1 1 . . . 1 1 . . . Scrap Searched 1 | . . 1 . . . . . . . . . . . . . Spaces Dug 99 | . 2 . 5 10 2 5 . . . 11 28 3 . . 33 Terrain Destroyed 332 | . 2 37 67 107 5 9 . . . 11 28 3 . . 63 Melee 93 | . 2 . . 9 2 5 . . . 11 28 3 . . 33 Projectile 16 | . . . . 14 . . . . . . . . . . 2 AOE 223 | . . 37 67 84 3 4 . . . . . . . . 28 Terrain Rammed . | . . . . . . . . . . . . . . . . Walls Destroyed . | . . . . . . . . . . . . . . . . Machines Disabled . | . . . . . . . . . . . . . . . . Actions | -11 -10 -10 -10 -8 -7 -7 -7 -6 -6 -6 -5 -5 -4 -4 -3 --------- Run | Yrd Mat Min Sub Mat Fac Low Low Fac Was Fac Fac Ext Fac DSF Res Total 9367 | 89 807 387 419 1729 340 1169 24 70 259 1167 849 532 8 106 1412 Wait 1079 | . 6 11 . 471 67 35 . . 54 353 11 3 . 1 67 Move 7310 | 70 699 339 390 1063 253 1077 24 65 184 690 757 489 5 83 1122 Hop 18 | . . . . . . . . . . 3 13 2 . . . Pick Up 107 | 7 23 5 3 22 1 6 . 1 2 9 5 3 . 3 17 Fast Attach 83 | 7 3 1 . 13 1 3 . 1 6 3 4 3 . 12 26 Attach 50 | . . . 1 9 1 4 . 1 . 11 4 1 . 3 15 Detach 20 | . . . . 3 1 . . . 4 2 . 1 . . 9 Swap 97 | . 9 10 6 27 3 10 . 1 2 7 5 2 1 . 14 Drop 111 | 1 14 6 4 26 1 3 . 1 7 14 8 5 . 1 20 Fire 235 | 4 48 14 12 39 7 23 . . . 54 1 17 . . 16 Melee 248 | . 3 . 3 56 5 8 . . . 21 41 6 . . 105 Ram . | . . . . . . . . . . . . . . . . Kick . | . . . . . . . . . . . . . . . . Crush 2 | . 2 . . . . . . . . . . . . . . Escape Stasis 4 | . . . . . . . . . . . . . . 3 1 Rewire . | . . . . . . . . . . . . . . . . Trap 1 | . . 1 . . . . . . . . . . . . . Miscellaneous 2 | . . . . . . . . . . . . . 2 . . Route ------- -11/Scrapyard -10/Materials (discovered 5 exits: [*Mat x3] / *Min x2) -10/Mines (discovered 3 exits: [*Mat x2] / [*Sub]) -10/Subcaves -8/Materials (discovered 2 exits: *Fac x2) -7/Factory (discovered 2 exits: [Fac] / *Low) -7/Lower Caves -7/Lower Caves -6/Factory -6/Waste -6/Factory (discovered 6 exits: *Fac x4 / Low x2) -5/Factory -5/Extension -4/Factory (discovered 2 exits: Res / DSF) -4/DSF -3/Research History --------- Turn | Location | Event 9 | -11/Scrapyard | Discovered new exit (range 16) 137 | -11/Scrapyard | Entered Materials 301 | -10/Materials | Build established: Mutant 608 | -10/Materials | Discovered new exit (range 5) 647 | -10/Materials | Discovered new exit (range 10) 708 | -10/Materials | Repaired Imp. Terrain Scanner 906 | -10/Materials | Discovered new exit (range 13) 1277 | -10/Materials | Discovered new exit (range 14) 1824 | -10/Materials | Discovered new exit (range 16) 1973 | -10/Materials | Entered Mines 2024 | -10/Mines | Discovered new exit (range 11) 2027 | -10/Mines | Learned Materials trap positions 2131 | -10/Mines | Found the Drone Emporium 2177 | -10/Mines | Found Prototype Device 2330 | -10/Mines | Core integrity fell below 50% 2350 | -10/Mines | Received a Rocket Launcher from a helpful Derelict 2441 | -10/Mines | Learned location of Zion (-7) 2502 | -10/Mines | Found a hidden stash of uninstalled traps 2530 | -10/Mines | Discovered new exit (range 14) 2546 | -10/Mines | Core integrity fell below 20% 2622 | -10/Mines | Discovered new exit (range 5) 2627 | -10/Mines | Entered Subcaves 2770 | -10/Subcaves | Shifting Twisted Machinery released Sub. Shrapnel Launcher 2813 | -10/Subcaves | Shifting Twisted Machinery released Mak. Thermal Plating 2911 | -10/Subcaves | Shifting Twisted Machinery released Sub. Power Source 3117 | -10/Subcaves | Build established: Scavenger-Mutant 3313 | -10/Subcaves | Discovered new exit (range 10) 3335 | -10/Subcaves | Entered Materials 3335 | -8/Materials | Evolved 4 slots: Propulsion x1, Utility x3 3336 | -8/Materials | Loaded intel: 14 trap records 3365 | -8/Materials | Identified Bomb Drone Bay 3530 | -8/Materials | Repaired Broken Rocket Launcher 4082 | -8/Materials | Discovered new exit (range 11) 4935 | -8/Materials | Build established: Scavenger-Assassin 5275 | -8/Materials | Discovered new exit (range 15) 5434 | -8/Materials | Build established: Skirmisher 5984 | -8/Materials | Entered Factory 5984 | -7/Factory | Evolved 2 slots: Propulsion x1, Utility x1 5988 | -7/Factory | Discovered new exit (range 14) 6483 | -7/Factory | Discovered new exit (range 15) 6511 | -7/Factory | Entered Lower Caves 6909 | -7/Lower Caves | Learned Extension trap positions 6909 | -7/Lower Caves | Learned Armory trap positions 6909 | -7/Lower Caves | Learned Extension stockpile data 6919 | -7/Lower Caves | Build established: Assassin 7343 | -7/Lower Caves | Lost 4 parts (1n1u2w) 7584 | -7/Lower Caves | Build established: Mutant 8106 | -7/Lower Caves | System corruption reached 10% 8655 | -7/Lower Caves | Learned location of Extension (-5) 8660 | -7/Lower Caves | Discovered new exit (range 12) 8686 | -7/Lower Caves | Entered another Lower Caves area 8686 | -7/Lower Caves | Discovered new exit (range 11) 8726 | -7/Lower Caves | Entered Factory 8726 | -6/Factory | Evolved 2 slots: Propulsion x1, Utility x1 8838 | -6/Factory | Sucked down chute 8838 | -6/Factory | Entered Waste 8839 | -6/Waste | Met a frightened Derelict 8839 | -6/Waste | Joined by Warlord forces that had cleared the area 8934 | -6/Waste | Discovered new exit (range 39) 9058 | -6/Waste | A Compactor rumbled back to life 9059 | -6/Waste | Spotted C-40 Crusher 9214 | -6/Waste | Entered Factory 9214 | -6/Factory | Accompanied by 21 allies 9259 | -6/Factory | Garrison activated, responded to threat 9310 | -6/Factory | Lost 13 allies 9539 | -6/Factory | Lost 7 allies 9696 | -6/Factory | Lost 5 allies 9697 | -6/Factory | Build established: Scavenger-Mutant 9986 | -6/Factory | Central database locked down 9986 | -6/Factory | Identified exit to Factory 9986 | -6/Factory | Identified exit to Lower Caves 9988 | -6/Factory | Lost 4 parts (1n3u) 10096 | -6/Factory | Repaired Broken Cld. VTOL Module 10253 | -6/Factory | Build established: Wizard-Sprinter 10381 | -6/Factory | Entered another Factory area 10381 | -5/Factory | Evolved 2 slots: Propulsion x1, Utility x1 10489 | -5/Factory | Fabricated Cld. VTOL Module (x1) 10545 | -5/Factory | Crushed by falling debris 10545 | -5/Factory | System corruption reached 10% 10624 | -5/Factory | Discovered new exit (range 11) 10645 | -5/Factory | Spotted B-75 Beast 10658 | -5/Factory | Entered Extension 10659 | -5/Extension | Loaded intel: 36 trap records 10685 | -5/Extension | Lost 6 parts (3n2u1w) 10692 | -5/Extension | Spotted B-75 Beast 10723 | -5/Extension | Rescued a captive Derelict 10728 | -5/Extension | Rescued a captive Derelict 10731 | -5/Extension | Rescued a captive Derelict 10760 | -5/Extension | Rescued A7 10847 | -5/Extension | Rescued a captive Derelict 10858 | -5/Extension | Rescued a captive Derelict 10861 | -5/Extension | Rescued a captive Derelict 10867 | -5/Extension | Spotted B-75 Beast 10878 | -5/Extension | Core integrity fell below 50% 10882 | -5/Extension | Discovered new exit (range 3) 10886 | -5/Extension | Entered Factory 10886 | -4/Factory | Accompanied by 1 ally (A7) 10886 | -4/Factory | Evolved 2 slots: Power x1, Propulsion x1 10887 | -4/Factory | Identified exit to Research 10894 | -4/Factory | Identified exit to DSF 10895 | -4/Factory | Entered DSF 10912 | -4/DSF | Lost 6 parts (4n2u) 10921 | -4/DSF | Additional patrols routed to DSF 10941 | -4/DSF | Discovered exit to Research (range 19) 10968 | -4/DSF | Entered Research 10968 | -3/Research | Evolved 2 slots: Utility x2 11041 | -3/Research | Found Prototype Processor 11041 | -3/Research | Identified Exp. Signal Interpreter 11043 | -3/Research | Found Exp. Signal Interpreter 11056 | -3/Research | Spotted B-86 Titan 11189 | -3/Research | Build established: Mutant 11329 | -3/Research | Lost 3 parts (3u) 11330 | -3/Research | Crushed by falling debris 11425 | -3/Research | Found Prototype Protection 11425 | -3/Research | Identified Centrium Heavy Armor Plating 11755 | -3/Research | System corruption reached 10% 11773 | -3/Research | Lost 3 parts (2p1w) 11886 | -3/Research | Core integrity fell below 50% 11912 | -3/Research | Core integrity fell below 20% 11928 | -3/Research | Destroyed 9 combat bots 11962 | -3/Research | Lost 15 parts (2p5n7u1w) 11968 | -3/Research | First assault squad dispatched 11969 | -3/Research | Destroyed by H-77 Assassin with Coil Gun Last Messages --------------- 11927_ Penetrated by Slug. 11931_ Imp. Antigrav System destroyed. 11937_ Acquired Mic. Antimatter Reactor. 11952_ Slug penetrates H-77 Assassin. 11952_ Slug penetrates Wall. 11954_ System corrupted: Gyrokinetic Inverter rejected. 11954_ Acquired Gyrokinetic Inverter. 11955_ System corrupted: Railgun jammed. 11956_ Penetrated by Slug. 11957_ Slug penetrates H-77 Assassin. [Achievement: Please Form A Line] 11959_ Penetrated by Slug. 11960_ Slug penetrates Wall. 11964_ Slug penetrates Earth. 11968_ Wall collapses. 11968_ ALERT: Significant disruption in Zone 4X, assault force dispatched. 11968_ Slug penetrates Wall. 11969_ Wall collapses. Map ----- +----------------------------------------------------+ | | | | | | | | | | | | | | | | | | | | | ?????????????????????????????????????????????????? | | ?????????????????????????????????????????????????? | | ?????????????????????????????????????????????????? | | ???????????????????????????###########???????????? | | ???????????????????????????# #???????????? | | ???????????????????????????# #???????????? | | ???????????????????????????# #???????????? | | ???????????????????????????# """#???????????? | | ???????????????????????????# """#???????????? | | ???????????????????????????# """#???????????? | | ???????????????????????????# ! #???????????? | | ?????????????????????????###hh = #???????????? | | ?????????????????????????# ;;;##+#####???????????? | | ????????????????????????## # #????????????? | | ????????????????????????# ## #????????????? | | ????????????????????????#@### #????????????? | | ??????????????????####?#;##?# #????????????? | | ??????????????# ### ???# ####????????????? | | ??????????????+ / ] ??# #???????????????? | | ??????????????????# # #???????????????? | | ??????????????????# "" "" + +???????????????? | | ??????????????????# ""S"" # #???????????????? | | ??????????????????# """" ??# #???????????????? | | ??????????????????# ????# #???????????????? | | ??????????????????# ??????# #???????????????? | | ??????????????????###???????# #???????????????? | | ????????????????????????????# #???????????????? | | ????????????????????????????# #???????????????? | | ????????????????????????????# #???????????????? | | ????????????????????????????# #???????????????? | | ???????????????????########?# #???????????????? | | ???????????????????# ! ?# #???????????????? | | ??????????????#????# # #???????????????? | | ??????????????# ???#! "" # #???????????????? | | ??????????##### ???# """ " +???????????????? | | ??????????? ???# S" # #???????????????? | | ??????????? ???# """ # #???????????????? | | ???????????? ???#] """ ?# #???????????????? | | ???????????? ???# ?# #???????????????? | | ?????????? ?? ???# ??# #???????????????? | +----------------------------------------------------+ Best States ------------- Heat Dissipation 84 Energy Generation 35 Energy Capacity 715 Matter Stores 435 Matter Capacity 550 Sight Range 22 Robot Scan Range 15 Terrain Scan Range 24 Terrain Scan Density 610 Additional Mass Support 9 Corruption Containment 12 Armor Coverage 600 Propulsion Shielding 66 Phase Shifting 10 Evasion (%) 67 Launcher Accuracy 60 Recoil Reduction 5 Salvage Targeting 4 Offensive Hacking 41 Defensive Hacking 20 Item Schematics ----------------- Hacking Suite | -8/Materials | Scanalyzed Mak. Hammer | -8/Materials | Scanalyzed Grenade Launcher | -8/Materials | Scanalyzed Rocket Launcher | -8/Materials | Scanalyzed Cld. VTOL Module | -7/Factory | Scanalyzed Robot Schematics ------------------ R-10 Processor | -6/Factory | Hacked Fabricated ------------ Cld. VTOL Module | x1 | -5/Factory Alien Tech Used ----------------- None Achievements -------------- Maximum Efficiency Please Form A Line Prison Break Release The Drones! The More The Merrier We Are Legion Challenges ------------ None Game ------ Seed BottomlessFieldBox Manual? 0 Play Time 03:11:47 Cumulative 34.3 hours Start 2024.06.13 @ 13:08:31 End 2024.06.14 @ 02:58:34 Sessions 5 Manual Loads 0 Difficulty Rogue Special Mode None Game No. 32 Rogue 32 Adventurer 0 Explorer 0 Win Type - Total 0 Types 0/0/0/0/0/0/0/0/0 Lore% 26 Gallery% 33 Achievement% 29 Wizard Run 0 Options --------- Layout 1 ASCII 0 Keyboard 1 Movement Arrows Keybinds 0 Fullscreen 2 Font 24/Smallcaps Map View 50x35 Zoom Use 0% Tactical HUD 1 Map Filters NONE Filters NONE Steam 1 RUN: e6529b54-5dc1-4b82-9d4e-d6cea81637c0